Cogmind - Beta 17 @@@ ROGUE MODE // 2026.07.04 @ 17:03:12 Player: eph7ra Result: Destroyed by G-47 Trooper with Particle Gun Performance ------------- Evolutions (3) 1500 Regions Visited (5) 1000 Robots Destroyed (28) 140 Value Destroyed (1206) 1206 Prototype IDs (1) 20 Alien Tech Used (0) 0 Bonus (116) 116 TOTAL SCORE: 3982 Bonus ------- Entered Garrisons 200 Friendly Fire -84 Cogmind --------- Core Integrity 0/700 Matter 285/300 Energy 100/100 System Corruption 16% Temperature Cool (9) Movement Core (700) Ox13 Location -7/Garrison Parts ------- > --- POWER (1) -------- (None) > --- PROPULSION (3) --- (None) > --- UTILITY (6) ------ High-capacity Storage Unit Core Analyzer > --- WEAPON (3) ------- (None) > --- INVENTORY (20) --- Aluminum Leg Aluminum Leg Aluminum Leg Improved VTOL Module High-capacity Storage Unit Relay Coupler [NC] (22) Peak State ------------ > --- POWER ------------ Nuclear Core > --- PROPULSION ------- Aluminum Leg Aluminum Leg Aluminum Leg > --- UTILITY ---------- Advanced Heat Sink High-capacity Storage Unit Core Analyzer Core Analyzer Insulated Plating Tractor Beam > --- WEAPON ----------- Particle Gun Particle Gun Light Assault Rifle > --- INVENTORY -------- Light Nuclear Core Aluminum Leg Aluminum Leg Aluminum Leg Wheel Compact Wheel Improved VTOL Module High-capacity Storage Unit Relay Coupler [NC] Heavy Laser Heavy Laser [Rating: 31] Favorites ----------- Power Ion Engine Engine Ion Engine Power Core Nuclear Core Propulsion Aluminum Leg Treads Light Treads Leg Aluminum Leg Wheel Compact Wheel Utility High-capacity Storage Unit Device Improved Heat Sink Storage High-capacity Storage Unit Processor Core Analyzer Protection Improved Light Armor Plating Weapon Light Assault Rifle Energy Gun Particle Gun Ballistic Gun Light Assault Rifle Ballistic Cannon Light Cannon Launcher Grenade Launcher Build | -11 -10 -10 -8 -7 -7 ------- Run | Yrd Mat Sub Mat Fac Gar Slots Evolved 6 | . . . 4 2 . Power . | . . . . . . Propulsion 1 | . . . 1 . . Utility 4 | . . . 2 2 . Weapon 1 | . . . 1 . . Parts Attached 38 | 6 1 1 5 3 22 Power 4 | 1 . . . . 3 Engine 2 | 1 . . . . 1 Core 2 | . . . . . 2 Reactor . | . . . . . . Propulsion 12 | 2 . . . . 10 Treads 3 | . . . . . 3 Leg 7 | 2 . . . . 5 Wheel 2 | . . . . . 2 Hover . | . . . . . . Flight . | . . . . . . Utility 12 | 1 1 . 4 3 3 Device 3 | . . . 1 . 2 Storage 2 | 1 1 . . . . Processor 2 | . . . . 1 1 Hackware . | . . . . . . Protection 5 | . . . 3 2 . Artifact . | . . . . . . Weapon 10 | 2 . 1 1 . 6 Energy Gun 6 | . . . . . 6 Energy Cannon . | . . . . . . Ballistic Gun 2 | 2 . . . . . Ballistic Cannon 1 | . . . 1 . . Launcher 1 | . . 1 . . . Special Weapon . | . . . . . . Impact Weapon . | . . . . . . Slashing Weapon . | . . . . . . Piercing Weapon . | . . . . . . Special Melee Weapon . | . . . . . . Unidentified Prototypes 1 | . . . . . 1 Corrupted Parts 2 | . . . . . 2 System Corruption 8 | . . . . . 8 Parts Lost 31 | . . . 2 . 29 Power 4 | . . . . . 4 Propulsion 9 | . . . . . 9 Utility 8 | . . . 1 . 7 Weapon 10 | . . . 1 . 9 Highest Loss Streak 16 | . . . 2 . 16 To Critical Strikes . | . . . . . . Average Backups 11 | 4 8 9 12 12 12 Power 1 | . 1 1 1 2 1 Propulsion 4 | 3 4 4 4 5 5 Utility 3 | . 1 1 3 2 3 Weapon 2 | . 1 3 2 3 2 Tool/Special . | . . . . . . Unused Backups 5 | . 1 . 1 . 3 Power 1 | . . . 1 . . Propulsion 1 | . . . . . 1 Utility 2 | . . . . . 2 Weapon 1 | . 1 . . . . Tool/Special . | . . . . . . Average Slot Usage (%) 81 | . 85 85 78 91 82 Engine 9 | . 14 14 9 7 4 Treads 1 | . . . . . 5 Leg 18 | . 28 28 18 15 9 Device 4 | . . . 5 7 7 Storage 9 | . 14 14 9 7 7 Processor 1 | . . . . 1 7 Protection 9 | . . . 11 27 14 Energy Gun 1 | . . . . . 6 Ballistic Gun 15 | . 28 17 14 15 9 Ballistic Cannon 4 | . . . 7 7 2 Launcher 3 | . . 10 3 . . Peak Build Rating 31 | 6 7 8 19 26 31 Average Rating 15 | 4 6 7 15 24 25 On Entrance 11 | . 6 7 8 19 26 Avg Prop Armor Cover (%) 4 | . . . . . 4 Naked Turns . | . . . . . . Heaviest Build 71 | 12 47 49 71 63 60 Greatest Support 40 | 20 20 20 20 20 40 Greatest Overweight (x) 13 | 1 2 2 3 3 13 Average Overweight (x) 1 | . 1 2 2 2 1 Largest Inventory Capacity 20 | 8 20 20 20 20 20 Average Capacity 19 | 7 17 20 20 20 20 Most Carried 16 | 7 9 14 16 14 16 Average Carried 12 | 4 8 13 13 12 12 Final Capacity 20 | 8 20 20 20 20 20 Final Carried 15 | 6 9 14 15 14 6 Class Distribution -------------------- 50% | Tank 42% | Mutant 4% | Scavenger-Gunner Dominant Class ---------------- Mutant | -10/Materials Mutant | -10/Subcaves Tank | -8/Materials Tank | -7/Factory Tank | -7/Garrison Resources | -11 -10 -10 -8 -7 -7 ----------- Run | Yrd Mat Sub Mat Fac Gar Matter Collected 995 | 240 20 76 288 . 371 Remotely 30 | . . . . . 30 Salvage Created 1078 | . . 190 225 . 663 Parts 42 | . . 10 9 . 23 Haulers Intercepted . | . . . . . . Recyclers Shooed . | . . . . . . Parts Field Recycled . | . . . . . . Retrieved Matter . | . . . . . . Parts Self-Destructed 2 | . . 2 . . . Prevented . | . . . . . . Parts Restored . | . . . . . . Kills | -11 -10 -10 -8 -7 -7 ------- Run | Yrd Mat Sub Mat Fac Gar Combat Hostiles Destroyed 27 | . . 6 8 . 13 Guns 11 | . . 1 1 . 9 Cannons 8 | . . . 5 . 3 AOE 7 | . . 5 2 . . Classes Destroyed 8 | . . 2 4 . 2 Recycler 1 | . . . 1 . . Swarmer 3 | . . . 3 . . Grunt 11 | . . . 1 . 10 Brawler 1 | . . . . . 1 Sentry 4 | . . 1 2 . 1 Hunter 2 | . . . 2 . . Programmer 1 | . . . . . 1 Subdweller 5 | . . 5 . . . Best Kill Streak 5 | . . 5 4 . 3 Combat Bots Only 5 | . . 5 3 . 3 Max Kills in Single Turn 2 | . . 2 2 . 1 Gunslinging . | . . . . . . Exploded 2 | . . 2 1 . . Melee . | . . . . . . Uniques/NPCs Destroyed . | . . . . . . Combat | -11 -10 -10 -8 -7 -7 -------- Run | Yrd Mat Sub Mat Fac Gar Hostile Shots Fired 381 | . . 9 70 . 302 Missed 114 | . . 6 14 . 94 Hits 267 | . . 3 56 . 208 Melee 3 | . . . . . 3 Projectile 264 | . . 3 56 . 205 Critical Strikes 15 | . . . 2 . 13 Damage Taken 4098 | . . 144 733 . 3221 Core 815 | . . 34 79 . 702 Absorbed by Shields . | . . . . . . Core Remaining (%) 90 | 100 . 86 85 . . Volleys Fired 111 | . 3 9 29 . 70 Largest 3 | . 2 2 3 . 3 Hottest 150 | . 40 50 80 . 150 Shots Fired 258 | . 6 18 76 . 158 Gun 196 | . 6 12 43 . 135 Cannon 52 | . . . 29 . 23 Launcher 10 | . . 6 4 . . Special . | . . . . . . Kinetic 187 | . 6 12 72 . 97 Thermal 55 | . . . . . 55 Explosive 10 | . . 6 4 . . Electromagnetic 6 | . . . . . 6 Robot Hit Streak 17 | . 2 4 7 . 17 Robot Miss Streak 4 | . 3 3 4 . 3 Penetration Max . | . . . . . . Secondary Targets 1 | . . . . . 1 Max Gunslinging Chain 1 | . . . . . 1 Shots Hit Robots 173 | . 2 5 48 . 118 Core Hits 87 | . 1 15 18 . 53 Critical Kills . | . . . . . . Critical Parts Destroyed . | . . . . . . Critical Strikes 6 | . . . 1 . 5 Burn 5 | . . . . . 5 Blast 1 | . . . 1 . . Melee Attacks . | . . . . . . Impact . | . . . . . . Slashing . | . . . . . . Piercing . | . . . . . . Sneak Attacks . | . . . . . . Combat Hostiles . | . . . . . . Follow-up Attacks . | . . . . . . Damage Inflicted 2931 | . 19 550 858 . 1504 Guns 1428 | . 19 27 184 . 1198 Cannons 671 | . . . 365 . 306 Explosions 826 | . . 523 303 . . Melee . | . . . . . . Ramming 6 | . . . 6 . . Kinetic 1380 | . 19 27 549 . 785 Thermal 589 | . . . . . 589 Explosive 826 | . . 523 303 . . Electromagnetic 130 | . . . . . 130 Impact . | . . . . . . Slashing . | . . . . . . Piercing . | . . . . . . Highest Corruption 16 | . . . . . 16 Average Corruption 3 | . . . . . 3 Corruption Purged . | . . . . . . Corruption Blocked . | . . . . . . Effects 16 | . . . . . 16 Message Errors 3 | . . . . . 3 Matter Fused 3 | . . . . . 3 Heat Flow Errors 1 | . . . . . 1 Energy Discharges 2 | . . . . . 2 Data Loss (minor) 4 | . . . . . 4 Weapon Failures 3 | . . . . . 3 Overload Shots . | . . . . . . Overflow Damage 13 | . . . 13 . . Projectiles . | . . . . . . Explosions 13 | . . . 13 . . Melee . | . . . . . . Knockbacks 8 | . . . 3 . 5 Impact . | . . . . . . Kinetic 8 | . . . 3 . 5 Secondary . | . . . . . . Self-Inflicted Damage 68 | . . 27 41 . . Shots 4 | . . 2 2 . . Rammed . | . . . . . . Targets Rammed 1 | . . . 1 . . Kicked 1 | . . . 1 . . Crushed . | . . . . . . Highest Temperature 218 | . . . 22 . 218 Average Temperature 31 | . . . 9 . 33 Received Heat Transfer 1461 | . . 27 144 . 1290 Siege Activations . | . . . . . . Martial Activations . | . . . . . . Shielding Activations . | . . . . . . Robots Disrupted . | . . . . . . Combat Hostiles . | . . . . . . Robots Corrupted . | . . . . . . Combat Hostiles . | . . . . . . Parts Fried . | . . . . . . Impact Corruptions . | . . . . . . Robots Melted 1 | . . . . . 1 Combat Hostiles 1 | . . . . . 1 Parts Melted 1 | . . . . . 1 Heat Transferred 1660 | . . . . . 1660 Parts Sabotaged . | . . . . . . Parts Stolen . | . . . . . . Parts Stripped . | . . . . . . Power Chain Reactions . | . . . . . . Alert | -11 -10 -10 -8 -7 -7 ------- Run | Yrd Mat Sub Mat Fac Gar Maximum Alert Level . | . . . . . . Low Security (%) 100 | 100 100 . 100 100 100 Level 1 . | . . . . . . Level 2 . | . . . . . . Level 3 . | . . . . . . Level 4 . | . . . . . . Level 5 . | . . . . . . High Security . | . . . . . . Max Security . | . . . . . . Peak Influence 142 | . 15 . 133 4 142 Initial 2 | . . . . . 2 Average 30 | . . . 19 . 70 Influence Increases 651 | . 15 20 292 4 320 Destroy 0b10 Robot/C 440 | . . 20 160 . 260 Destroy 0b10 Robot/NC 5 | . . . 5 . . Destroy Leader 80 | . . . 50 . 30 Successful Hack 28 | . 15 . 9 4 . Disable Machine 45 | . . . 45 . . Destroy Structure 23 | . . . 23 . . Lose Combat Pursuer 30 | . . . . . 30 Influence Decreases 619 | . 15 20 292 . 292 Entered New Map 2 | . . . . . 2 Time Decay 204 | . 15 20 169 . . Lost Part 310 | . . . 20 . 290 Purge Threat 103 | . . . 103 . . Squads Dispatched 1 | . . . 1 . . Investigation . | . . . . . . Extermination . | . . . . . . Reinforcement 1 | . . . 1 . . Assault . | . . . . . . Garrison . | . . . . . . Intercept . | . . . . . . Searches Triggered . | . . . . . . Construction Impeded 1 | . . . 1 . . Haulers Reinforced . | . . . . . . Active Scanning Responses . | . . . . . . Cargo Convoy Interrupts . | . . . . . . Stealth | -11 -10 -10 -8 -7 -7 --------- Run | Yrd Mat Sub Mat Fac Gar Distress Signals 1 | . . . 1 . . Communications Jammed . | . . . . . . Distress Signals . | . . . . . . Times Spotted 47 | . 2 12 10 . 23 Peak Tracking Total 9 | . 2 5 3 . 9 Tactical Retreats 1 | . . . . . 1 Traps | -11 -10 -10 -8 -7 -7 ------- Run | Yrd Mat Sub Mat Fac Gar Traps Triggered . | . . . . . . Indirectly . | . . . . . . Trap Hack Attempts . | . . . . . . Triggered . | . . . . . . Disarmed . | . . . . . . Reprogrammed . | . . . . . . Reused . | . . . . . . Traps Extracted . | . . . . . . Installed . | . . . . . . Triggered . | . . . . . . Machines | -11 -10 -10 -8 -7 -7 ---------- Run | Yrd Mat Sub Mat Fac Gar Machines Disabled 3 | . . . 3 . . Max in Single Turn 1 | . . . 1 . . Machines Repaired . | . . . . . . Machines Dismantled . | . . . . . . Machines Sabotaged . | . . . . . . Overloaded Fab Kills . | . . . . . . Hacking | -11 -10 -10 -8 -7 -7 --------- Run | Yrd Mat Sub Mat Fac Gar Machines Accessed 8 | . 1 . 5 1 1 Terminals 5 | . 1 . 3 . 1 Fabricators . | . . . . . . Repair Stations . | . . . . . . Recycling Units . | . . . . . . Scanalyzers 2 | . . . 2 . . Garrison Access 1 | . . . . 1 . Total Hacks 18 | . 4 . 12 1 1 Successful 14 | . 3 . 9 1 1 Failed 4 | . 1 . 3 . . Catastrophic . | . . . . . . Database Lockouts . | . . . . . . Manual 3 | . 1 . 2 . . Terminals 13 | . 4 . 8 . 1 Fabricators . | . . . . . . Repair Stations . | . . . . . . Recycling Units . | . . . . . . Scanalyzers 4 | . . . 4 . . Garrison Access 1 | . . . . 1 . Terminal Hacks 7 | . 2 . 4 . 1 Robot Analysis 1 | . 1 . . . . Unreport Threat 2 | . . . 2 . . Hauler Manifests 1 | . . . 1 . . Registered Components 1 | . . . 1 . . Zone Layout 1 | . 1 . . . . Patrol Navigation 1 | . . . . . 1 Fabricator Hacks . | . . . . . . Repair Station Hacks . | . . . . . . Recycling Unit Hacks . | . . . . . . Scanalyzer 4 | . . . 4 . . Insert Component 1 | . . . 1 . . Analyze 1 | . . . 1 . . Retrieve Study 2 | . . . 2 . . Garrison Access Hacks 1 | . . . . 1 . Unlock Access 1 | . . . . 1 . Unauthorized Hacks 2 | . 1 . 1 . . Terminals 2 | . 1 . 1 . . Botnet 2 | . 1 . 1 . . Fabricators . | . . . . . . Repair Stations . | . . . . . . Recycling Units . | . . . . . . Scanalyzers . | . . . . . . Garrison Access . | . . . . . . Data Cores Recovered . | . . . . . . Used . | . . . . . . Hacking Detections 5 | . 1 . 4 . . Full Trace Events . | . . . . . . Feedback Events . | . . . . . . Feedback Blocked . | . . . . . . Robot Schematics Acquired . | . . . . . . Robots Built . | . . . . . . Authchips . | . . . . . . Time . | . . . . . . Total Robot Build Rating . | . . . . . . Part Schematics Acquired 1 | . . . 1 . . Parts Built . | . . . . . . Authchips . | . . . . . . Time . | . . . . . . Total Part Build Rating . | . . . . . . Part Studies Acquired 2 | . . . 2 . . Parts Repaired . | . . . . . . Time . | . . . . . . Parts Recycled . | . . . . . . Recycled Matter . | . . . . . . Retrieved Matter . | . . . . . . Retrieved Components . | . . . . . . Parts Scanalyzed 1 | . . . 1 . . Part Schematics Acquired 1 | . . . 1 . . Parts Damaged . | . . . . . . Bothacking | -11 -10 -10 -8 -7 -7 ------------ Run | Yrd Mat Sub Mat Fac Gar Used RIF Installer . | . . . . . . Robots Hacked . | . . . . . . Non-combat . | . . . . . . Combat . | . . . . . . Robot Hacks Applied . | . . . . . . Relay Couplers Released 3 | . . . . . 3 Programmers 3 | . . . . . 3 Fabnet Peak Effective % . | . . . . . . Robots Rewired . | . . . . . . Allies Hacked . | . . . . . . Hacks Repelled . | . . . . . . Allies | -11 -10 -10 -8 -7 -7 -------- Run | Yrd Mat Sub Mat Fac Gar Total Allies . | . . . . . . Largest Group . | . . . . . . Highest-Rated Group . | . . . . . . Highest-Rated Ally . | . . . . . . Total Orders . | . . . . . . Ally Attacks . | . . . . . . Total Damage . | . . . . . . Kills . | . . . . . . Allies Corrupted . | . . . . . . Allies Melted . | . . . . . . Intel | -11 -10 -10 -8 -7 -7 ------- Run | Yrd Mat Sub Mat Fac Gar Active Infowar (turns) . | . . . . . . Robot Analysis Total 1 | . 1 . . . . Derelict Logs Recovered . | . . . . . . Drone Launches . | . . . . . . Drone Recoveries . | . . . . . . Exploration | -11 -10 -10 -8 -7 -7 ------------- Run | Yrd Mat Sub Mat Fac Gar Turns Passed 3320 | 70 399 538 1455 71 787 Spaces Moved 1150 | 46 189 196 440 22 257 Core 7 | 6 . . . . 1 Treads 83 | . . . . . 83 Legs 1029 | 40 189 196 440 22 142 Wheels 31 | . . . . . 31 Hover . | . . . . . . Flight . | . . . . . . Fastest Speed 50 | 50 120 260 260 260 105 Average Speed 251 | 120 202 260 302 307 211 Slowest Speed 700 | 190 260 260 330 330 700 Overloaded Moves . | . . . . . . Propulsion Burnouts . | . . . . . . Robots Hopped . | . . . . . . Potential Cave-ins . | . . . . . . Cave-ins Triggered . | . . . . . . Exploration Rate (%) 19 | 3 31 18 35 1 26 Regions Visited 5 Branch Regions 1 Pre-discovered Areas . | . . . . . . Known Exits Taken 1 | . . . . 1 . Unknown Exits Taken 4 | 1 1 1 1 . . Scrap Searched . | . . . . . . Spaces Dug 5 | . . . 5 . . Terrain Destroyed 55 | . . 36 19 . . Melee . | . . . . . . Projectile . | . . . . . . AOE 55 | . . 36 19 . . Terrain Rammed . | . . . . . . Walls Destroyed . | . . . . . . Machines Disabled . | . . . . . . Actions | -11 -10 -10 -8 -7 -7 --------- Run | Yrd Mat Sub Mat Fac Gar Total 1374 | 58 203 209 507 27 370 Wait 25 | . 4 . 14 . 7 Move 1145 | 45 188 195 439 21 257 Hop . | . . . . . . Pick Up 37 | 7 5 4 11 1 9 Fast Attach 7 | 5 . . . 1 1 Attach 28 | 1 . . 6 2 19 Detach 1 | . . . . 1 . Swap 10 | . 1 1 2 . 6 Drop 7 | . 2 . 3 1 1 Fire 111 | . 3 9 29 . 70 Melee . | . . . . . . Ram . | . . . . . . Kick 1 | . . . 1 . . Crush . | . . . . . . Escape Stasis . | . . . . . . Rewire . | . . . . . . Trap . | . . . . . . Miscellaneous 2 | . . . 2 . . Route ------- -11/Scrapyard -10/Materials (discovered 3 exits: [*Min x2] / [*Sub]) -10/Subcaves -8/Materials -7/Factory -7/Garrison History --------- Turn | Location | Event 7 | -11/Scrapyard | Discovered new exit (range 15) 71 | -11/Scrapyard | Entered Materials 106 | -10/Materials | Discovered new exit (range 5) 304 | -10/Materials | Build established: Mutant 382 | -10/Materials | Discovered new exit (range 15) 442 | -10/Materials | Discovered new exit (range 6) 470 | -10/Materials | Entered Subcaves 471 | -10/Subcaves | Approached by a straggling Scientist 593 | -10/Subcaves | Ambushed by swarm of Subdwellers 595 | -10/Subcaves | Ambushed by Subdwellers from Twisted Machinery 595 | -10/Subcaves | Ambushed by Subdwellers from Twisted Machinery 664 | -10/Subcaves | Discovered new exit (range 13) 1008 | -10/Subcaves | Entered Materials 1008 | -8/Materials | Evolved 4 slots: Propulsion x1, Utility x2, Weapon x1 1579 | -8/Materials | Build established: Tank 2379 | -8/Materials | Discovered new exit (range 14) 2463 | -8/Materials | Entered Factory 2463 | -7/Factory | Evolved 2 slots: Utility x2 2531 | -7/Factory | Identified exit to Garrison 2534 | -7/Factory | Entered Garrison 2612 | -7/Garrison | Triggered checkpoint 2938 | -7/Garrison | Lost 5 parts (1n2u2w) 3157 | -7/Garrison | Lost 5 parts (1p2n2w) 3212 | -7/Garrison | Triggered checkpoint 3269 | -7/Garrison | System corruption reached 10% 3279 | -7/Garrison | Triggered checkpoint 3295 | -7/Garrison | Core integrity fell below 50% 3311 | -7/Garrison | Core integrity fell below 20% 3316 | -7/Garrison | Heavy support dispatched to Factory 3321 | -7/Garrison | Destroyed by G-47 Trooper with Particle Gun Last Messages --------------- B-48 Gladiator destroyed. Aluminum Leg destroyed. Particle Gun destroyed. Critical hit (Burn: +37). Aluminum Leg destroyed. G-47 Trooper destroyed. Particle Gun destroyed. G-47 Trooper suffers critical hit (Burn). G-47 Trooper destroyed. Adv. Heat Sink destroyed. Nuclear Core destroyed. NKGH ,HQXBDA>7HM Hvy. Laser destroyed. G-47 Trooper heat short circuits Particle Gun. Critical hit (Burn: +37). Lgt. Nuclear Core destroyed. Wheel destroyed. Com. Wheel destroyed. ALERT: Dispatching Heavy support to Factory. System corrupted: Component data lost. Map ----- +----------------------------------------------------+ | ?????????????????????????????????????????????????? | | ?????????????????????????????????????????????????? | | ?????????????????????????????????????????????????? | | ?????????????????????????????????????????????????? | | ?????????????????????????????????????????????????? | | ?????????????????????????????????????????????????? | | ?????????????????????????????????????????????????? | | ?????????????????????????????????????????????????? | | ?????????????????????????????????????????????????? | | ?????????????#???????????????????????????????????? | | ?????????????# ?????????????????????????????????? | | ????????????## ##""""#######????????????????????? | | ????????????# ????????????????????? | | ????????????# ?????????????????????? | | ????????????# ?????????????????????? | | ????????????# ?# ## #?????????????????????? | | ??????????### ##^^ ## ###???????????????????? | | ??????????# #???????????????????? | | ??????????# % #???????????????????? | | ??????????# #???????????????????? | | ??????????? #???????????????????? | | ????????????# ## ## ###???????????????????? | | ????????????#^^ ##s ## % ###############???????? | | ????????????#^ %[ s "#???????? | | ????????????# =[g!s != #"T"#???????? | | ????????????# ==%=s @ ########% #####???????? | | ????????????# *## ###+##??????#==#???????????? | | ????????????# ## #?# ????????#!%#???????????? | | ????????????# #######?#?????????# #???????????? | | ????????????# #??????????### #### #???????????? | | ????????????# #???????# + #???????????? | | ????????????# #??????????### ####% #???????????? | | ????????????# #?????????????????# #???????????? | | ????????????# #????????????#????# #???????????? | | ??????? #????????????# ???# #???????????? | | ?? #?????????####+#### #???????????? | | ? #?????????#*! %!% #???????????? | | ?### #######+###?????????# ####### ############? | | ???#????????# ????????????# #?????# #? | | ????????????# ????????????#!###???# #? | | ???????????? ????????????# #???########### #? | | ????????????##????????????# ! #?????????????# #? | | ??????????????????????????# %#?????????????#####? | | ??????????????????????????# ###??????????????????? | | ??????????????????????????#^#????????????????????? | | ??????????????????????????# #????????????????????? | | ??????????????????????????# #????????????????????? | | ??????????????????????????# #????????????????????? | | ??????????????????????????# #????????????????????? | | ?????????????????????????? #????????????????????? | +----------------------------------------------------+ Best States ------------- Heat Dissipation 53 Energy Generation 14 Energy Capacity 250 Matter Stores 300 Matter Capacity 300 Sight Range 16 Terrain Scan Density 10 Armor Coverage 800 Resistance: EM 15 Evasion (%) 55 Core Analysis 9 Recoil Reduction 3 Item Schematics ----------------- Lgt. Treads | -8/Materials | Scanalyzed Robot Schematics ------------------ None Fabricated ------------ Nothing Repaired ---------- Nothing Studied --------- Lgt. Treads | -8/Materials | Hacked Lgt. Assault Rifle | -8/Materials | Hacked Alien Tech Used ----------------- None Achievements -------------- Do Not Disturb Survival Of The Most Covered Challenges ------------ None Game ------ Seed DecoderTractorMindspike Manual? 0 Play Time 00:29:05 Cumulative 24.5 hours Start 2026.07.03 @ 06:32:20 End 2026.07.04 @ 17:03:12 Sessions 2 Manual Loads 0 Difficulty Rogue Special Mode None Game No. 32 Rogue 27 Adventurer 1 Explorer 4 Win Type - Total 0 Types 0/0/0/0/0/0/0/0/0/0 Lore% 10 Gallery% 19 Achievement% 18 Wizard Run 0 Options --------- Layout 1 ASCII 0 Keyboard 0 Movement Arrows Keybinds 0 Fullscreen 1 Font 24/Smallcaps Map View 50x35 Zoom Use 0% Tactical HUD 0 Map Filters NONE Filters NONE Steam 1 RUN: ecbf42a8-7df1-45f5-bf89-5938b9cc0b5a